bitfinex/quotes_BTCUSD_20240828
["timestamp","ask_amount","ask_price","bid_price","bid_amount"]
[1724829103661,2.59171,59318.0,59317.0,0.0008987]
[1724829105052,2.928875,59318.0,59317.0,0.0008987]
[1724829105254,2.76526164,59318.0,59317.0,0.0008987]
[1724829105630,3.10242664,59318.0,59317.0,0.0008987]
[1724829106720,2.9331613,59318.0,59317.0,0.0008987]
[1724829111571,2.9281613,59318.0,59317.0,0.0008987]
[1724829112422,2.9331613,59318.0,59317.0,0.0008987]
[1724829112645,2.9281613,59318.0,59317.0,0.0008987]
[1724829112860,2.9331613,59318.0,59317.0,0.0008987]
[1724829113711,2.5909963,59318.0,59317.0,0.0008987]
[1724829113903,2.5959963,59318.0,59317.0,0.0008987]
[1724829114346,2.9331613,59318.0,59317.0,0.0008987]
[1724829114983,2.9281613,59318.0,59317.0,0.0008987]
[1724829116206,3.04637059,59318.0,59317.0,0.0008987]
[1724829117727,2.11132349,59318.0,59317.0,0.1811987]
[1724829117938,2.11132349,59318.0,59317.0,0.21403857]
[1724829118563,2.23685499,59318.0,59317.0,0.1811987]
[1724829118851,1.53685499,59318.0,59317.0,0.1811987]
[1724829119064,1.41132034,59318.0,59317.0,0.1811987]
[1724829119691,1.74848534,59318.0,59317.0,0.1811987]
[1724829119892,1.41132034,59318.0,59317.0,0.1811987]
[1724829121319,1.4113241,59318.0,59317.0,0.1811987]
[1724829121786,1.53685713,59318.0,59317.0,0.1811987]
[1724829122003,1.41132197,59318.0,59317.0,0.1811987]
[1724829122755,1.53684322,59318.0,59317.0,0.1811987]
[1724829122921,1.7484849,59318.0,59317.0,0.1811987]
[1724829123339,2.04395238,59318.0,59317.0,0.0008987]
[1724829123542,2.383135,59318.0,59317.0,0.0008987]
[1724829124025,2.7253,59318.0,59317.0,0.0008987]
[1724829124233,2.69666902,59318.0,59317.0,0.0008987]
[1724829124406,3.39666902,59318.0,59317.0,0.0008987]
[1724829124628,3.77200912,59318.0,59317.0,0.0008987]
[1724829125241,4.02084597,59318.0,59317.0,0.0008987]
[1724829125657,4.0456784,59318.0,59317.0,0.0008987]
[1724829125973,4.44760989,59318.0,59317.0,0.0008987]
[1724829126380,4.11044489,59318.0,59317.0,0.0008987]
[1724829126557,4.19891163,59318.0,59317.0,0.0008987]
[1724829126762,3.86174663,59318.0,59317.0,0.0008987]
[1724829128123,4.19891163,59318.0,59317.0,0.0008987]
[1724829129021,4.18491163,59318.0,59317.0,0.0008987]
[1724829129252,4.18691163,59318.0,59317.0,0.0008987]
[1724829129471,4.1359962,59318.0,59317.0,0.0008987]
[1724829129686,4.1219962,59318.0,59317.0,0.0008987]
[1724829130156,4.1359962,59318.0,59317.0,0.0008987]
[1724829130421,4.1219962,59318.0,59317.0,0.0008987]
[1724829130657,4.1359962,59318.0,59317.0,0.0008987]
[1724829131078,3.96744456,59318.0,59317.0,0.0008987]
[1724829131502,3.95344456,59318.0,59317.0,0.0008987]
[1724829131907,3.96744456,59318.0,59317.0,0.0008987]
[1724829132357,3.95344456,59318.0,59317.0,0.0008987]
[1724829132819,3.96744456,59318.0,59317.0,0.0008987]
[1724829133280,4.1359962,59318.0,59317.0,0.0008987]
[1724829134041,4.1219962,59318.0,59317.0,0.0008987]
[1724829135018,4.1079962,59318.0,59317.0,0.0008987]
[1724829135424,4.08188289,59318.0,59317.0,0.0008987]
[1724829135628,4.12197004,59318.0,59317.0,0.0008987]
[1724829135830,4.13597004,59318.0,59317.0,0.0008987]
[1724829136034,4.14497004,59318.0,59317.0,0.0008987]
[1724829136236,4.13097004,59318.0,59317.0,7e-07]
[1724829136440,4.14497004,59318.0,59317.0,7e-07]
[1724829137055,4.13097004,59318.0,59317.0,7e-07]
[1724829137280,4.14497004,59318.0,59317.0,7e-07]
[1724829137491,4.13097004,59318.0,59317.0,7e-07]
[1724829138366,3.9624184,59318.0,59317.0,7e-07]
[1724829138587,3.9764184,59318.0,59317.0,7e-07]
[1724829140239,3.81318165,59318.0,59317.0,7e-07]
[1724829140982,0.1722254,59301.0,59300.0,0.50630766]
[1724829141216,0.24790047,59301.0,59300.0,0.55693843]
[1724829141475,0.51245271,59301.0,59300.0,0.52756457]
[1724829141660,0.51245271,59301.0,59300.0,0.86483257]
[1724829141928,0.51245271,59301.0,59300.0,1.20210057]
[1724829142628,0.50575,59301.0,59300.0,1.20210057]
[1724829142850,0.50875,59301.0,59300.0,0.52756457]
[1724829143067,0.51904711,59301.0,59300.0,0.3082998]
[1724829143313,0.51704711,59301.0,59300.0,0.3082998]
[1724829143521,0.51804711,59301.0,59300.0,0.3082998]
[1724829144382,0.68667811,59301.0,59300.0,0.3082998]
[1724829144808,0.68567811,59301.0,59300.0,0.3082998]
[1724829145450,1.02394011,59301.0,59300.0,0.3082998]
[1724829145655,0.68567811,59301.0,59300.0,0.3082998]
[1724829145879,0.68467811,59301.0,59300.0,0.3082998]
[1724829146093,1.02294011,59301.0,59300.0,0.3082998]
[1724829146309,1.02194011,59301.0,59300.0,0.3082998]
[1724829146519,1.07240024,59301.0,59300.0,0.3082998]
[1724829146739,1.40966224,59301.0,59300.0,0.3082998]
[1724829147818,1.52790564,59301.0,59300.0,0.3082998]
[1724829148704,1.91562778,59301.0,59300.0,0.3082998]
[1724829148909,1.94085785,59301.0,59300.0,0.0008998]
[1724829149119,1.98325915,59301.0,59300.0,0.0008998]
[1724829149603,2.00933214,59301.0,59300.0,0.0008998]
[1724829149812,2.0093288,59301.0,59300.0,0.0008998]
[1724829150259,2.87803916,59301.0,59300.0,0.0008998]
[1724829150480,2.88303916,59301.0,59300.0,0.0008998]
[1724829150707,2.88603916,59301.0,59300.0,0.0008998]
[1724829151634,2.89203916,59301.0,59300.0,0.0008998]
[1724829151905,2.88903916,59301.0,59300.0,0.0008998]
[1724829152138,3.0575908,59301.0,59300.0,0.0008998]
[1724829152352,3.0615908,59301.0,59300.0,0.0008998]
[1724829154688,3.37408061,59301.0,59300.0,0.0008998]
[1724829155638,3.49927813,59301.0,59300.0,0.0008998]
[1724829156631,3.52533151,59301.0,59300.0,0.0008998]
[1724829156837,3.37407353,59301.0,59300.0,0.0008998]
[1724829157119,3.39172503,59301.0,59300.0,0.0008998]
[1724829157789,3.38572503,59301.0,59300.0,0.0008998]
[1724829158019,3.38172503,59301.0,59300.0,0.0008998]
[1724829158288,3.73298703,59301.0,59300.0,0.0008998]
[1724829158535,3.97711889,59301.0,59300.0,0.0008998]
[1724829158752,4.00710066,59301.0,59300.0,0.0008998]
[1724829158940,4.02110066,59301.0,59300.0,0.0008998]
[1724829159183,3.99310066,59301.0,59300.0,0.0008998]
[1724829159655,4.02097127,59301.0,59300.0,0.0008998]
[1724829159864,4.00697127,59301.0,59300.0,0.0008998]
[1724829161679,4.02097127,59301.0,59300.0,0.0008998]
[1724829161922,4.00697127,59301.0,59300.0,0.0008998]
[1724829162144,3.05448877,59301.0,59300.0,0.0008998]
[1724829162388,3.1657504,59301.0,59300.0,0.0008998]
[1724829162608,3.14872887,59301.0,59300.0,0.0008998]
[1724829162825,2.99762101,59301.0,59300.0,0.0008998]
[1724829163044,2.98362101,59301.0,59300.0,0.0008998]
[1724829163956,3.15217265,59301.0,59300.0,0.0008998]
[1724829164168,3.4807486,59301.0,59300.0,0.0008998]
[1724829164776,3.4947486,59301.0,59300.0,0.0008998]
[1724829165015,3.6609486,59301.0,59300.0,0.0008998]
[1724829165241,3.67298566,59301.0,59300.0,0.0008998]
[1724829165453,3.68498566,59301.0,59300.0,0.0008998]
[1724829165663,3.54686915,59301.0,59300.0,0.0008998]
[1724829165869,3.53386915,59301.0,59300.0,0.0008998]
[1724829166084,3.52186915,59301.0,59300.0,0.0008998]
[1724829166307,3.54986915,59301.0,59300.0,0.0008998]
[1724829166519,3.68776915,59301.0,59300.0,0.0008998]
[1724829167383,3.67876915,59301.0,59300.0,0.0008998]
[1724829167605,3.51021751,59301.0,59300.0,0.0008998]
[1724829168014,3.52421751,59301.0,59300.0,0.0008998]
[1724829168631,3.49621751,59301.0,59300.0,0.0008998]
[1724829168880,3.52421751,59301.0,59300.0,0.0008998]
[1724829169083,3.52401867,59301.0,59300.0,0.0008998]
[1724829169288,3.49601867,59301.0,59300.0,0.0008998]
[1724829169531,3.32981867,59301.0,59300.0,0.0008998]
[1724829169755,3.34381867,59301.0,59300.0,0.0008998]
[1724829171075,2.64381867,59301.0,59300.0,0.0008998]
[1724829171291,2.62981867,59301.0,59300.0,0.0008998]
[1724829171530,2.61581867,59301.0,59300.0,0.0008998]
[1724829171735,2.64381867,59301.0,59300.0,0.0008998]
[1724829171956,2.62981867,59301.0,59300.0,0.0008998]
[1724829172178,2.61581867,59301.0,59300.0,0.0008998]
[1724829172434,2.49191867,59301.0,59300.0,0.0008998]
[1724829173277,2.64647031,59301.0,59300.0,0.0008998]
[1724829173498,2.81518067,59301.0,59300.0,0.0008998]
[1724829173721,3.13668067,59301.0,59300.0,0.0008998]
[1724829173935,4.00675858,59301.0,59300.0,0.0008998]
[1724829174371,3.85465371,59301.0,59300.0,0.0008998]
[1724829174818,3.86865371,59301.0,59300.0,0.0008998]
[1724829175079,3.84065371,59301.0,59300.0,0.0008998]
[1724829175336,4.02320535,59301.0,59300.0,0.0008998]
[1724829176475,4.04924052,59301.0,59300.0,0.0008998]
[1724829176681,4.06324052,59301.0,59300.0,0.0008998]
[1724829177333,4.12580283,59301.0,59300.0,0.0008998]
[1724829177549,4.11180283,59301.0,59300.0,0.0008998]
[1724829178235,4.04924052,59301.0,59300.0,0.0008998]
[1724829178476,3.94315506,59301.0,59300.0,0.0008998]
[1724829178719,3.94315693,59301.0,59300.0,0.0008998]
[1724829179210,3.92915693,59301.0,59300.0,0.0008998]
[1724829179431,3.6614576,59301.0,59300.0,0.0008998]
[1724829179668,3.89469075,59301.0,59300.0,0.0008998]
[1724829180410,3.95685973,59301.0,59300.0,0.0008998]
[1724829180627,4.11141137,59301.0,59300.0,0.0008998]
[1724829181078,4.11132694,59301.0,59300.0,0.0008998]
[1724829181303,4.04924239,59301.0,59300.0,0.0008998]
[1724829181524,4.11132224,59301.0,59300.0,0.0008998]
[1724829181966,4.12532224,59301.0,59300.0,0.0008998]
[1724829183296,4.12531862,59301.0,59300.0,0.0008998]
[1724829183978,3.95676698,59301.0,59300.0,0.0008998]
[1724829189014,3.29800498,59301.0,59300.0,0.0008998]
[1724829189235,3.23592513,59301.0,59300.0,0.0008998]
[1724829189876,3.20590743,59301.0,59300.0,0.0008998]
[1724829190106,3.1995152,59301.0,59300.0,0.0008998]
[1724829190311,3.3440152,59301.0,59300.0,0.0008998]
[1724829190520,3.3740329,59301.0,59300.0,0.0008998]
[1724829191414,3.2030329,59301.0,59300.0,0.0008998]
[1724829191641,2.5030329,59301.0,59300.0,0.0008998]
[1724829191859,2.50305938,59301.0,59300.0,0.0008998]
[1724829192069,2.47304168,59301.0,59300.0,0.0008998]
[1724829192280,2.32854168,59301.0,59300.0,0.0009398]
[1724829192513,2.32354168,59301.0,59300.0,0.0009398]
[1724829192727,2.32854168,59301.0,59300.0,0.0009398]
[1724829194764,3.02854168,59301.0,59300.0,0.0009398]
[1724829195442,3.02435968,59301.0,59300.0,0.0009398]
[1724829195938,3.02935968,59301.0,59300.0,0.0009398]
[1724829196600,3.02435968,59301.0,59300.0,0.0009398]
[1724829197049,3.02435968,59301.0,59300.0,0.1818398]
[1724829197284,2.92435968,59301.0,59300.0,0.1818398]
[1724829197505,3.09478465,59301.0,59300.0,0.1818398]
[1724829197973,2.92435968,59301.0,59300.0,0.1818398]
[1724829199559,3.09478392,59301.0,59300.0,0.1818398]
[1724829199764,2.92435968,59301.0,59300.0,0.1818398]
[1724829200188,3.09478547,59301.0,59300.0,0.0009398]
[1724829200838,2.92435968,59301.0,59300.0,0.0009398]
[1724829201490,2.9243948,59301.0,59300.0,0.0009398]
[1724829202379,3.09480739,59301.0,59300.0,0.0009398]
[1724829202798,3.0948107,59301.0,59300.0,0.0009398]
[1724829203656,3.09479967,59301.0,59300.0,0.0009398]
[1724829203870,2.9243948,59301.0,59300.0,0.0009398]
[1724829205418,2.4688257,59301.0,59300.0,0.0009398]
[1724829205641,2.4688257,59301.0,59300.0,0.3011398]
[1724829205642,2.4511742,59301.0,59300.0,0.3011398]
[1724829205877,2.5694813,59301.0,59300.0,0.3011398]
[1724829206089,2.2322193,59301.0,59300.0,0.3011398]
[1724829206341,2.19212428,59301.0,59300.0,0.33125378]
[1724829206555,2.19212428,59301.0,59300.0,0.3011398]
[1724829206776,1.85486228,59301.0,59300.0,0.3011398]
[1724829206993,1.50312428,59301.0,59300.0,0.3011398]
[1724829207447,1.48912428,59301.0,59300.0,0.3011398]
[1724829207677,1.50112428,59301.0,59300.0,0.3011398]
[1724829208106,1.38281718,59301.0,59300.0,0.3011398]
[1724829208532,1.04555518,59301.0,59300.0,0.33125378]
[1724829208750,1.17170562,59301.0,59300.0,0.33125378]
[1724829209840,1.17170562,59301.0,59300.0,0.3011398]
[1724829210711,1.04555518,59301.0,59300.0,0.3011398]
[1724829212234,0.80915134,59301.0,59300.0,0.3011398]
[1724829212429,0.70829318,59301.0,59300.0,0.3011398]
[1724829212880,1.09598446,59301.0,59300.0,0.3011398]
[1724829213103,1.09598446,59301.0,59300.0,0.34811828]
[1724829213314,1.04555518,59301.0,59300.0,0.34811828]
[1724829215019,0.70829318,59301.0,59300.0,0.34811828]
[1724829218108,0.53966218,59301.0,59300.0,0.34811828]
[1724829219018,0.70829318,59301.0,59300.0,0.34811828]
[1724829219245,0.69629318,59301.0,59300.0,0.34811828]
[1724829219463,0.69029318,59301.0,59300.0,0.34811828]
[1724829219679,0.69329318,59301.0,59300.0,0.34811828]
[1724829219897,0.52466218,59301.0,59300.0,0.34811828]
[1724829221388,0.52106778,59301.0,59300.0,0.51675228]
[1724829222291,0.52106778,59301.0,59300.0,0.85402028]
[1724829222507,0.52086482,59301.0,59300.0,0.85402028]
[1724829224312,0.52086482,59301.0,59300.0,0.51675228]
[1724829227781,0.52086482,59301.0,59300.0,0.85402028]
[1724829228907,0.51786482,59301.0,59300.0,0.85402028]
[1724829229344,0.51786482,59301.0,59300.0,0.85602028]
[1724829229595,0.51286482,59301.0,59300.0,0.85602028]
[1724829230233,0.51286482,59301.0,59300.0,0.51875228]
[1724829230443,0.51286482,59301.0,59300.0,0.1767398]
[1724829230444,1.14055213,59301.0,59300.0,0.1767398]
[1724829231538,1.14055213,59301.0,59300.0,0.1747398]
[1724829232379,1.14355213,59301.0,59300.0,0.1747398]
[1724829232790,1.14055213,59301.0,59300.0,0.1747398]
[1724829232993,1.14555213,59301.0,59300.0,0.1747398]
[1724829233198,1.48281413,59301.0,59300.0,0.1747398]
[1724829233410,1.14555213,59301.0,59300.0,0.1747398]
[1724829233660,1.14155213,59301.0,59300.0,0.1747398]
[1724829233876,1.14455213,59301.0,59300.0,0.1747398]
[1724829234330,1.14355213,59301.0,59300.0,0.1747398]
[1724829234752,1.14355213,59301.0,59300.0,0.0009398]
[1724829234753,1.14155213,59301.0,59300.0,0.0009398]
[1724829234967,1.14055213,59301.0,59300.0,0.0009398]
[1724829236261,1.14155213,59301.0,59300.0,0.0009398]
[1724829237579,1.47881413,59301.0,59300.0,0.0009398]
[1724829239322,2.12417613,59301.0,59300.0,0.0009398]
[1724829239544,2.25010596,59301.0,59300.0,0.0009398]
[1724829239756,2.12417613,59301.0,59300.0,0.0009398]
[1724829240171,2.12317613,59301.0,59300.0,0.0009398]
[1724829240395,2.12817613,59301.0,59300.0,0.0009398]
[1724829241032,2.12317613,59301.0,59300.0,0.0009398]
[1724829241260,2.13217613,59301.0,59300.0,0.0009398]
[1724829241824,1.79791413,59301.0,59300.0,0.0009398]
[1724829241917,1.79491413,59301.0,59300.0,0.0009398]
[1724829242142,2.13217613,59301.0,59300.0,0.0009398]
[1724829242361,2.14017613,59301.0,59300.0,0.0009398]
[1724829243408,1.80291413,59301.0,59300.0,0.0009398]
[1724829249439,2.14017613,59301.0,59300.0,0.0009398]
[1724829250922,2.84017613,59301.0,59300.0,0.0009398]
[1724829251132,2.99157802,59301.0,59300.0,0.0009398]
[1724829252270,2.29157802,59301.0,59300.0,0.0009398]
[1724829252778,2.2916602,59301.0,59300.0,0.0009398]
[1724829253002,2.2836602,59301.0,59300.0,0.0009398]
[1724829253465,2.2866602,59301.0,59300.0,0.0009398]
[1724829253942,2.2986602,59301.0,59300.0,0.0009398]
[1724829254400,1.9613982,59301.0,59300.0,0.0009398]
[1724829254649,1.9493982,59301.0,59300.0,0.0009398]
[1724829255091,2.2866602,59301.0,59300.0,0.0009398]
[1724829255321,2.2826602,59301.0,59300.0,0.0009398]
[1724829255767,2.2916602,59301.0,59300.0,0.0009398]
[1724829257571,2.29163401,59301.0,59300.0,0.0009398]
[1724829258158,2.14017613,59301.0,59300.0,0.0009398]
[1724829258539,2.84017613,59301.0,59300.0,0.0009398]
[1724829258740,2.86626422,59301.0,59300.0,0.0009398]
[1724829264229,3.20352622,59301.0,59300.0,0.0009398]
[1724829268139,2.86626422,59301.0,59300.0,0.0009398]
[1724829268793,3.20352622,59301.0,59300.0,0.0009398]
[1724829269006,3.47707786,59301.0,59300.0,0.0009398]
[1724829269443,3.33337254,59301.0,59300.0,0.0009398]
[1724829270510,3.36383344,59301.0,59300.0,0.0009398]
[1724829271364,3.36383344,59301.0,59300.0,0.0009398]
[1724829272212,3.3638049,59301.0,59300.0,0.0009398]
[1724829273635,3.21575867,59301.0,59300.0,0.0009398]
[1724829273853,2.58303577,59301.0,59300.0,0.0009398]
[1724829274058,2.70824093,59301.0,59300.0,0.0009398]
[1724829274656,2.58303821,59301.0,59300.0,0.0009398]
[1724829274879,2.70826702,59301.0,59300.0,0.0009398]
[1724829275235,2.58303748,59301.0,59300.0,0.0009398]
[1724829276873,2.58283452,59301.0,59300.0,0.0009398]
[1724829281738,2.58285356,59301.0,59300.0,0.0009398]
[1724829282607,2.56585356,59301.0,59300.0,0.0009398]
[1724829282806,2.57985356,59301.0,59300.0,0.0009398]
[1724829283430,2.59385356,59301.0,59300.0,0.0009398]
[1724829284268,2.57985356,59301.0,59300.0,0.0009398]
[1724829284469,2.57685356,59301.0,59300.0,0.0009398]
[1724829284873,2.59085356,59301.0,59300.0,0.0009398]
[1724829285407,2.57685356,59301.0,59300.0,0.0009398]
[1724829285622,2.58885356,59301.0,59300.0,0.0009398]
[1724829286640,2.58886548,59301.0,59300.0,0.0009398]
[1724829287062,2.75356548,59301.0,59300.0,0.0009398]
[1724829290454,2.75356817,59301.0,59300.0,0.0009398]
[1724829291727,2.22398394,59301.0,59300.0,0.0009398]
[1724829294274,2.05928394,59301.0,59300.0,0.0009398]
[1724829294653,2.75928394,59301.0,59300.0,0.0009398]
[1724829296120,0.168651,59294.0,59293.0,0.00196006]
[1724829296359,1.01109415,59294.0,59293.0,0.00196006]
[1724829296579,1.0172358,59294.0,59293.0,0.00196006]
[1724829296780,1.14344925,59294.0,59293.0,0.00196006]
[1724829296985,1.16989934,59294.0,59293.0,0.00196006]
[1724829297202,1.04368589,59294.0,59293.0,0.00196006]
[1724829297408,1.17489934,59294.0,59293.0,0.00196006]
[1724829297825,1.51220134,59294.0,59293.0,0.00196006]
[1724829298248,1.63047413,59294.0,59293.0,0.00196006]
[1724829299123,1.63047413,59294.0,59293.0,0.16056006]
[1724829299574,1.63347413,59294.0,59293.0,0.16056006]
[1724829300239,0.67554074,59294.0,59293.0,0.27593005]
[1724829300461,0.54932729,59294.0,59293.0,0.27593005]
[1724829300706,0.54932729,59294.0,59293.0,0.25076006]
[1724829300707,0.71797829,59294.0,59293.0,0.25076006]
[1724829300942,0.71797829,59294.0,59293.0,0.00196006]
[1724829300943,1.49356286,59294.0,59293.0,0.00196006]
[1724829301159,1.39258229,59294.0,59293.0,0.00196006]
[1724829301373,1.85611,59294.0,59293.0,0.00196006]
[1724829301586,2.01128429,59294.0,59293.0,0.00196006]
[1724829302033,2.00628429,59294.0,59293.0,0.00196006]
[1724829302496,2.00928429,59294.0,59293.0,0.00196006]
[1724829302763,2.01528429,59294.0,59293.0,0.00196006]
[1724829303173,2.00928429,59294.0,59293.0,0.00196006]
[1724829303390,2.01828429,59294.0,59293.0,0.00196006]
[1724829303833,2.01828429,59294.0,59290.0,0.0009398]
[1724829303834,1.1842104,59291.0,59290.0,0.0009398]
[1724829304057,1.68935155,59291.0,59290.0,0.0009398]
[1724829304265,1.69549442,59291.0,59290.0,0.0009398]
[1724829305491,1.70749442,59291.0,59290.0,0.0009398]
[1724829306786,1.71849442,59291.0,59290.0,0.0009398]
[1724829309190,1.70649442,59291.0,59290.0,0.0009398]
[1724829309389,1.69549442,59291.0,59290.0,0.0009398]
[1724829309796,1.82509442,59291.0,59290.0,0.0009398]
[1724829310018,2.52509442,59291.0,59290.0,0.0009398]
[1724829310247,2.67489442,59291.0,59290.0,0.0009398]
[1724829310985,2.68589442,59291.0,59290.0,0.0009398]
[1724829311662,3.02321342,59291.0,59290.0,0.0009398]
[1724829312179,3.02821342,59291.0,59290.0,0.0009398]
[1724829312496,3.01721342,59291.0,59290.0,0.0009398]
[1724829312707,3.00721342,59291.0,59290.0,0.0009398]
[1724829312918,3.00721342,59291.0,59290.0,0.0009798]
[1724829313538,3.01921342,59291.0,59290.0,0.0009798]
[1724829313950,3.03147134,59291.0,59290.0,0.0009798]
[1724829314167,3.04547134,59291.0,59290.0,0.0009798]
[1724829314627,3.05847134,59291.0,59290.0,0.0009798]
[1724829315234,3.04547134,59291.0,59290.0,0.0009798]
[1724829315640,2.52802298,59291.0,59290.0,0.0009798]
[1724829315845,2.35947134,59291.0,59290.0,0.0009798]
[1724829315971,3.05947134,59291.0,59290.0,0.0009798]
[1724829316175,3.04547134,59291.0,59290.0,0.0009798]
[1724829316609,3.05947134,59291.0,59290.0,0.0009798]
[1724829317182,3.04547134,59291.0,59290.0,0.0009798]
[1724829317734,2.42794007,59291.0,59290.0,0.0009798]
[1724829318039,2.41394007,59291.0,59290.0,0.0009798]
[1724829318462,2.83725907,59291.0,59290.0,0.0009798]
[1724829318669,3.53725907,59291.0,59290.0,0.0009798]
[1724829318877,3.55125907,59291.0,59290.0,0.0009798]
[1724829319550,3.58136906,59291.0,59290.0,0.0009798]
[1724829319763,3.55711114,59291.0,59290.0,0.0009798]
[1724829320021,1.75816772,59281.0,59280.0,4e-05]
[1724829320230,2.60068487,59281.0,59280.0,4e-05]
[1724829320435,2.60680334,59281.0,59280.0,4e-05]
[1724829320853,3.04417934,59281.0,59280.0,4e-05]
[1724829321033,1.5268624,59278.0,59277.0,0.00628559]
[1724829321293,3.01820355,59278.0,59277.0,0.00628559]
[1724829321518,3.11820355,59278.0,59277.0,0.00628559]
[1724829321725,3.12432202,59278.0,59277.0,0.00628559]
[1724829322441,2.18243602,59278.0,59277.0,0.00628559]
[1724829322643,2.18243602,59278.0,59277.0,0.00718539]
[1724829323279,2.19643602,59278.0,59277.0,0.00718539]
[1724829323479,2.21043602,59278.0,59277.0,0.00718539]
[1724829323680,2.19643602,59278.0,59277.0,0.00718539]
[1724829324187,2.08633602,59278.0,59277.0,0.00718539]
[1724829324368,2.08633602,59278.0,59277.0,0.15948539]
[1724829324497,1.39755002,59278.0,59277.0,0.24478539]
[1724829324702,1.73494302,59278.0,59277.0,0.24478539]
[1724829324958,1.74894302,59278.0,59277.0,0.24478539]
[1724829325635,1.41155002,59278.0,59277.0,0.24478539]
[1724829326409,1.24285402,59278.0,59277.0,0.28613493]
[1724829326642,1.24285402,59278.0,59277.0,0.24478539]
[1724829326784,0.54285402,59278.0,59277.0,0.24478539]
[1724829327404,0.69755002,59278.0,59277.0,0.24478539]
[1724829327729,0.69755002,59278.0,59277.0,0.15948539]
[1724829327730,0.61879679,59278.0,59277.0,0.15948539]
[1724829328198,0.62379679,59278.0,59277.0,0.15948539]
[1724829328613,0.5133779,59278.0,59277.0,0.15948539]
[1724829328848,0.58906009,59278.0,59277.0,0.15948539]
[1724829329084,0.59006009,59278.0,59277.0,0.15948539]
[1724829329300,1.09814909,59278.0,59277.0,0.15948539]
[1724829329503,1.09814909,59278.0,59277.0,0.00718539]
[1724829329504,1.12337597,59278.0,59277.0,0.00718539]
[1724829329720,1.24944055,59278.0,59277.0,0.00718539]
[1724829329927,1.61205196,59278.0,59277.0,0.00718539]
[1724829330139,1.4859599,59278.0,59277.0,0.00718539]
[1724829330340,1.61205196,59278.0,59277.0,0.00718539]
[1724829330571,1.4859599,59278.0,59277.0,0.00718539]
[1724829330779,1.58679301,59278.0,59277.0,0.00718539]
[1724829331006,1.48575694,59278.0,59277.0,0.00718539]
[1724829331221,2.52314994,59278.0,59277.0,0.00718539]
[1724829331457,2.649242,59278.0,59277.0,0.00718539]
[1724829331672,2.62394967,59278.0,59277.0,0.00718539]
[1724829332513,2.39704994,59278.0,59277.0,0.00718539]
[1724829333456,2.47262356,59278.0,59277.0,0.00718539]
[1724829334086,2.74142356,59278.0,59277.0,0.00718539]
[1724829334310,2.66584994,59278.0,59277.0,0.00718539]
[1724829335376,2.76661118,59278.0,59277.0,0.00718539]
[1724829337303,2.66584994,59278.0,59277.0,0.00718539]
[1724829337958,2.7917634,59278.0,59277.0,0.00718539]
[1724829338176,2.61778018,59278.0,59277.0,0.00718539]
[1724829339296,2.49778539,59278.0,59277.0,0.00718539]
[1724829339540,1.48560639,59278.0,59277.0,0.15738539]
[1724829339768,1.21617494,59278.0,59277.0,0.26282393]
[1724829340002,0.51617494,59278.0,59277.0,0.26282393]
[1724829341433,0.51617494,59278.0,59277.0,0.24708539]
[1724829342347,0.51617494,59278.0,59277.0,0.00718539]
[1724829342348,1.64885694,59278.0,59277.0,0.00718539]
[1724829342584,1.02026394,59278.0,59277.0,0.00718539]
[1724829342804,1.09583756,59278.0,59277.0,0.00718539]
[1724829343029,1.02826394,59278.0,59277.0,0.00718539]
[1724829343501,1.02026394,59278.0,59277.0,0.00718539]
[1724829343727,1.01826394,59278.0,59277.0,0.00718539]
[1724829343930,1.12799939,59278.0,59277.0,0.00718539]
[1724829344359,1.46539239,59278.0,59277.0,0.00718539]
[1724829344555,1.49057625,59278.0,59277.0,0.00718539]
[1724829344805,1.49057625,59278.0,59277.0,0.00722539]
[1724829345029,1.48157625,59278.0,59277.0,0.00722539]
[1724829345445,1.02226394,59278.0,59277.0,0.00722539]
[1724829345894,1.14848465,59278.0,59277.0,0.00722539]
[1724829346327,1.02226394,59278.0,59277.0,0.00722539]
[1724829346574,1.14849113,59278.0,59277.0,0.15702539]
[1724829347050,1.14849113,59278.0,59277.0,0.00722539]
[1724829347051,1.48588441,59278.0,59277.0,0.00722539]
[1724829347272,1.65245694,59278.0,59277.0,0.00722539]
[1724829347735,1.98984994,59278.0,59277.0,0.00722539]
[1724829348427,1.64645694,59278.0,59277.0,0.00722539]
[1724829348709,1.80356012,59278.0,59277.0,0.00722539]
[1724829348911,1.80888525,59278.0,59277.0,0.00722539]
[1724829349145,1.80488525,59278.0,59277.0,0.00722539]
[1724829349372,1.80888525,59278.0,59277.0,0.00722539]
[1724829349802,1.64688525,59278.0,59277.0,0.00722539]
[1724829350027,1.64088525,59278.0,59277.0,0.00722539]
[1724829350250,1.64688525,59278.0,59277.0,0.00722539]
[1724829350743,1.52139575,59278.0,59277.0,0.00722539]
[1724829350976,2.22139575,59278.0,59277.0,0.00722539]
[1724829352748,2.66985307,59278.0,59277.0,0.00722539]
[1724829353423,2.84041467,59278.0,59277.0,0.00722539]
[1724829353626,3.17180767,59278.0,59277.0,0.00722539]
[1724829354311,3.18080767,59278.0,59277.0,0.00722539]
[1724829354735,3.17180767,59278.0,59277.0,0.00722539]
[1724829354888,3.17780767,59278.0,59277.0,0.00722539]
[1724829355101,3.18580767,59278.0,59277.0,0.00722539]
[1724829355318,3.17780767,59278.0,59277.0,0.00722539]
[1724829355677,3.18680767,59278.0,59277.0,0.00722539]
[1724829356835,3.17680767,59278.0,59277.0,0.00722539]
[1724829357282,3.18680767,59278.0,59277.0,0.00722539]
[1724829357754,3.01624607,59278.0,59277.0,0.00722539]
[1724829357952,3.00724607,59278.0,59277.0,0.00722539]
[1724829358164,3.01624607,59278.0,59277.0,0.00722539]
[1724829358581,3.01623483,59278.0,59277.0,0.00722539]
[1724829361163,3.18674634,59278.0,59277.0,0.00722539]
[1724829362000,2.99012526,59278.0,59277.0,0.00722539]
[1724829362212,3.18676506,59278.0,59277.0,0.00722539]
[1724829362503,2.72048,59278.0,59277.0,0.00722539]
[1724829362702,1.762194,59278.0,59277.0,0.02410793]
[1724829362906,1.762194,59278.0,59277.0,0.00722539]
[1724829363742,1.424801,59278.0,59277.0,0.00722539]
[1724829363952,1.424801,59278.0,59277.0,0.25822539]
[1724829363953,0.52999294,59278.0,59277.0,0.25822539]
[1724829364220,0.65632681,59278.0,59277.0,0.25822539]
[1724829364443,1.49980881,59278.0,59277.0,0.00722539]
[1724829364649,2.41555913,59278.0,59277.0,0.00722539]
[1724829364871,2.31533696,59278.0,59277.0,0.00722539]
[1724829365533,3.01533696,59278.0,59277.0,0.00722539]
[1724829370867,3.01533696,59278.0,59277.0,0.00992539]
[1724829371077,3.1858647,59278.0,59277.0,0.00992539]
[1724829371316,3.01533696,59278.0,59277.0,0.00992539]
[1724829371546,3.52321308,59278.0,59277.0,0.00992539]
[1724829371719,3.35275141,59278.0,59277.0,0.00992539]
[1724829371920,3.35475141,59278.0,59277.0,0.00992539]
[1724829372135,3.34275141,59278.0,59277.0,0.00992539]
[1724829372495,3.36675141,59278.0,59277.0,0.00992539]
[1724829372724,3.35475141,59278.0,59277.0,0.00992539]
[1724829373159,3.51319256,59278.0,59277.0,0.00992539]
[1724829373722,3.54119256,59278.0,59277.0,0.00992539]
[1724829375104,3.51319256,59278.0,59277.0,0.00992539]